bitfinex/quotes_SOLUSD_20230102
["timestamp","ask_amount","ask_price","bid_price","bid_amount"]
[1672650677421,20.0,11.16,11.151,181.917]
[1672650677847,20.0,11.16,11.151,114.547]
[1672650678261,31.24639162,11.16,11.151,114.547]
[1672650678688,30.0,11.159,11.151,114.547]
[1672650679008,32.27130839,11.158,11.151,114.547]
[1672650679324,20.0,11.158,11.151,114.547]
[1672650679517,24.3337,11.161,11.151,114.547]
[1672650679518,12.27130839,11.159,11.151,114.547]
[1672650679728,32.27130839,11.158,11.151,114.547]
[1672650679932,12.27130839,11.158,11.151,114.547]
[1672650680139,20.0,11.157,11.151,114.547]
[1672650681635,32.27130839,11.157,11.151,114.547]
[1672650683727,30.0,11.155,11.151,114.547]
[1672650683938,30.0,11.155,11.142,67.42]
[1672650683939,20.0,11.154,11.142,67.42]
[1672650684147,534.6,11.152,11.142,67.42]
[1672650684349,30.0,11.151,11.142,113.979]
[1672650684567,20.0,11.15,11.142,113.979]
[1672650685093,13.16688802,11.149,11.142,113.979]
[1672650685306,20.0,11.148,11.142,113.979]
[1672650685610,20.0,11.15,11.142,113.979]
[1672650685611,13.16688802,11.149,11.142,113.979]
[1672650685936,20.0,11.148,11.142,113.979]
[1672650686877,20.0,11.151,11.142,113.979]
[1672650689194,33.16688802,11.151,11.142,113.979]
[1672650689937,20.0,11.151,11.142,113.979]
[1672650690571,30.0,11.15,11.142,113.979]
[1672650690882,30.0,11.148,11.142,113.979]
[1672650691070,554.6,11.147,11.142,113.979]
[1672650691284,639.66878965,11.147,11.142,113.979]
[1672650691937,13.18131372,11.146,11.142,113.979]
[1672650692144,554.6,11.145,11.132,67.48]
[1672650692356,554.6,11.145,11.137,0.31548369]
[1672650692667,626.48747593,11.145,11.133,0.31545536]
[1672650692884,626.48747593,11.145,11.133,67.79545536]
[1672650693086,626.48747593,11.145,11.133,0.31545536]
[1672650693401,626.48747593,11.145,11.134,22.97395396]
[1672650693402,639.66878965,11.145,11.134,22.97395396]
[1672650693607,534.6,11.15,11.135,0.31554036]
[1672650693810,534.6,11.15,11.136,67.46]
[1672650694018,13.18131372,11.149,11.137,0.31548369]
[1672650694224,13.18131372,11.149,11.138,67.45]
[1672650694431,13.18131372,11.149,11.139,132.63022704]
[1672650694645,534.6,11.148,11.14,0.31539872]
[1672650694859,30.0,11.147,11.139,132.3148]
[1672650695497,534.6,11.145,11.139,132.3148]
[1672650695924,20.0,11.144,11.139,132.3148]
[1672650696345,20.0,11.145,11.139,132.3148]
[1672650696749,20.0,11.145,11.139,199.7548]
[1672650697164,20.0,11.15,11.139,199.7548]
[1672650697390,30.0,11.149,11.14,135.7498]
[1672650697714,20.0,11.148,11.14,135.7498]
[1672650697906,33.6204661,11.148,11.14,135.7498]
[1672650698447,13.6204661,11.147,11.14,135.7498]
[1672650698642,20.0,11.146,11.14,135.7498]
[1672650699487,44.8584,11.149,11.14,135.7498]
[1672650699698,13.6204661,11.148,11.141,22.663]
[1672650699907,20.0,11.147,11.141,22.663]
[1672650700135,559.5549,11.151,11.141,22.663]
[1672650700347,30.0,11.149,11.141,22.663]
[1672650700553,20.0,11.148,11.141,18.17287416]
[1672650700961,13.6204661,11.148,11.141,18.17287416]
[1672650701169,534.6,11.149,11.141,18.17287416]
[1672650701395,20.0,11.148,11.141,13.68274832]
[1672650702134,534.6,11.146,11.133,67.48]
[1672650702340,87.4,11.145,11.132,67.48]
[1672650702535,125.5777661,11.145,11.132,67.48]
[1672650702745,44.5573,11.145,11.133,30.0]
[1672650702962,44.5573,11.145,11.135,30.0]
[1672650703160,44.5573,11.145,11.136,67.46]
[1672650703375,44.5573,11.145,11.137,30.0]
[1672650703376,20.0,11.145,11.137,30.0]
[1672650703588,20.0,11.147,11.138,67.45]
[1672650703816,20.0,11.147,11.139,30.0]
[1672650704235,20.0,11.147,11.138,179.5386]
[1672650706020,33.6204661,11.147,11.138,179.5386]
[1672650706211,33.6204661,11.147,11.138,112.0886]
[1672650706635,20.0,11.147,11.138,112.0886]
[1672650707175,13.235664,11.146,11.138,112.0886]
[1672650707383,20.0,11.145,11.138,112.0886]
[1672650710339,30.0,11.146,11.135,67.46]
[1672650710656,30.0,11.146,11.129,30.0]
[1672650710657,30.0,11.143,11.132,67.48]
[1672650710869,20.0,11.142,11.132,67.48]
[1672650711388,20.0,11.142,11.131,92.3213]
[1672650711585,20.0,11.143,11.132,24.8313]
[1672650711796,20.0,11.143,11.132,47.9282]
[1672650715594,534.6,11.142,11.132,47.9282]
[1672650715915,20.0,11.141,11.133,30.0]
[1672650716732,20.0,11.141,11.133,97.48]
[1672650717163,33.235664,11.141,11.133,97.48]
[1672650717491,33.235664,11.141,11.133,30.0]
[1672650718418,20.0,11.141,11.133,97.48]
[1672650718634,20.0,11.142,11.133,97.48]
[1672650718835,33.235664,11.143,11.133,97.48]
[1672650719040,13.235664,11.142,11.133,67.48]
[1672650719251,20.0,11.141,11.132,47.9282]
[1672650719694,13.235664,11.14,11.132,47.9282]
[1672650719905,20.0,11.139,11.132,47.9282]
[1672650722530,20.0,11.141,11.132,115.4082]
[1672650723773,20.0,11.143,11.132,115.4082]
[1672650723986,554.6,11.144,11.133,167.6924]
[1672650724202,554.6,11.144,11.134,205.1624]
[1672650724418,30.0,11.143,11.134,67.47]
[1672650724613,20.0,11.142,11.13,67.49]
[1672650724830,44.0402,11.142,11.13,205.1824]
[1672650725355,44.0402,11.142,11.131,30.0]
[1672650725566,44.0402,11.142,11.132,67.48]
[1672650725986,20.0,11.142,11.132,67.48]
[1672650726196,20.0,11.144,11.132,67.48]
[1672650726412,20.0,11.144,11.134,30.0]
[1672650726624,20.0,11.144,11.135,67.46]
[1672650726835,20.0,11.144,11.135,139.6366]
[1672650727044,534.6,11.144,11.135,139.6366]
[1672650727242,20.0,11.143,11.135,139.6366]
[1672650728192,20.0,11.144,11.135,139.6366]
[1672650728406,20.0,11.144,11.136,23.3507]
[1672650728618,33.235664,11.144,11.136,23.3507]
[1672650728822,567.835664,11.144,11.136,23.3507]
[1672650729032,635.245664,11.144,11.131,67.49]
[1672650729247,635.245664,11.144,11.13,141.6039]
[1672650729248,534.6,11.142,11.13,209.0939]
[1672650729461,20.0,11.141,11.13,209.0939]
[1672650729670,20.0,11.141,11.131,30.0]
[1672650729880,20.0,11.141,11.132,67.48]
[1672650730097,20.0,11.141,11.132,90.8307]
[1672650730712,20.0,11.141,11.132,209.0839]
[1672650732605,534.6,11.145,11.132,209.0839]
[1672650732819,20.0,11.144,11.133,163.6094]
[1672650733025,20.0,11.144,11.134,67.47]
[1672650733236,33.235664,11.144,11.133,231.0894]
[1672650733446,33.235664,11.144,11.134,138.9703]
[1672650734073,33.235664,11.144,11.135,22.9995]
[1672650734289,20.0,11.144,11.135,22.9995]
[1672650734493,20.0,11.144,11.135,90.4595]
[1672650734709,22.6731,11.148,11.135,200.0577]
[1672650734710,20.0,11.145,11.135,200.0577]
[1672650734914,20.0,11.145,11.136,186.6055]
[1672650735145,20.0,11.147,11.137,67.45]
[1672650735354,20.0,11.147,11.137,199.9664]
[1672650735992,20.0,11.147,11.138,22.9182]
[1672650736182,20.0,11.147,11.139,67.44]
[1672650736392,20.0,11.147,11.139,90.3582]
[1672650736617,20.0,11.148,11.139,90.3582]
[1672650736824,20.0,11.148,11.14,22.9182]
[1672650737030,33.235664,11.149,11.14,22.9182]
[1672650737244,20.0,11.149,11.14,22.9182]
[1672650737569,20.0,11.151,11.14,22.9182]
[1672650737972,96.99309293,11.151,11.14,22.9182]
[1672650738942,96.99309293,11.151,11.14,52.9182]
[1672650739128,20.0,11.151,11.142,30.0]
[1672650739867,20.0,11.153,11.144,30.0]
[1672650740077,20.0,11.158,11.145,47.8243]
[1672650740310,13.235664,11.157,11.147,30.0]
[1672650740510,13.235664,11.157,11.148,136.2535]
[1672650741759,67.34,11.156,11.148,136.2535]
[1672650741970,20.0,11.155,11.148,136.2535]
[1672650742184,33.235664,11.155,11.148,136.2535]
[1672650743134,20.0,11.155,11.148,136.2535]
[1672650743348,20.0,11.156,11.148,136.2535]
[1672650743667,20.0,11.157,11.148,136.2535]
[1672650743859,33.235664,11.157,11.148,136.2535]
[1672650744074,13.235664,11.156,11.148,136.2535]
[1672650744403,20.0,11.155,11.148,136.2535]
[1672650745030,33.235664,11.155,11.148,136.2535]
[1672650745980,20.0,11.155,11.148,136.2535]
[1672650746187,20.0,11.157,11.148,136.2535]
[1672650746380,20.0,11.157,11.149,22.7198]
[1672650746590,71.87975959,11.157,11.149,22.7198]
[1672650746805,20.0,11.156,11.149,22.7198]
[1672650747120,33.235664,11.156,11.149,22.7198]
[1672650747332,13.235664,11.155,11.149,22.7198]
[1672650747533,20.0,11.154,11.149,22.7198]
[1672650748060,33.235664,11.154,11.149,22.7198]
[1672650748697,20.0,11.154,11.149,22.7198]
[1672650749025,33.235664,11.156,11.149,22.7198]
[1672650751120,13.235664,11.155,11.149,22.7198]
[1672650751331,20.0,11.154,11.149,22.7198]
[1672650751652,80.595664,11.153,11.147,23.7777]
[1672650751862,615.195664,11.153,11.147,23.7777]
[1672650752073,13.235664,11.152,11.147,23.7777]
[1672650752390,67.36,11.153,11.139,67.44]
[1672650752605,67.36,11.153,11.14,30.0]
[1672650752606,9.17,11.15,11.14,30.0]
[1672650752919,9.17,11.15,11.139,179.4456]
[1672650753336,20.0,11.149,11.139,179.4456]
[1672650753948,20.0,11.149,11.139,112.0056]
[1672650755009,13.235664,11.148,11.139,112.0056]
[1672650755331,20.0,11.147,11.139,112.0056]
[1672650756805,33.235664,11.147,11.139,112.0056]
[1672650764583,30.0,11.146,11.135,67.46]
[1672650764781,602.0,11.145,11.129,24.6651]
[1672650765112,43.235664,11.144,11.13,67.49]
[1672650765305,85.11542359,11.144,11.13,67.49]
[1672650765517,13.235664,11.143,11.13,67.49]
[1672650766257,24.9607,11.142,11.13,67.49]
[1672650766478,20.0,11.141,11.13,67.49]
[1672650767083,20.0,11.141,11.131,30.0]
[1672650767307,20.0,11.143,11.132,67.48]
[1672650767511,20.0,11.147,11.133,78.0762]
[1672650767733,44.9607,11.147,11.135,30.0]
[1672650767938,44.9607,11.147,11.136,91.6468]
[1672650768565,44.9607,11.147,11.137,24.1868]
[1672650770242,13.235664,11.146,11.137,24.1868]
[1672650770453,20.0,11.145,11.137,139.515]
[1672650771205,33.235664,11.145,11.137,139.515]
[1672650772360,20.0,11.145,11.137,139.515]
[1672650772570,20.0,11.146,11.137,139.515]
[1672650772984,33.24008555,11.146,11.137,139.515]
[1672650775401,20.0,11.146,11.137,139.515]
[1672650776036,639.34540927,11.146,11.134,67.47]
[1672650776239,115.97415959,11.146,11.13,9.18]
[1672650776446,128.83980927,11.146,11.132,30.0]
[1672650776659,128.83980927,11.146,11.134,30.0]
[1672650776874,128.83980927,11.146,11.135,207.4416]
[1672650777624,128.83980927,11.146,11.136,139.9816]
[1672650778769,30.0,11.145,11.136,139.9816]
[1672650778979,128.83980927,11.146,11.136,139.9816]
[1672650778980,20.0,11.144,11.136,139.9816]
[1672650779913,20.0,11.144,11.136,207.4416]
[1672650780128,20.0,11.145,11.136,207.4416]
[1672650780763,32.86564968,11.145,11.136,139.9816]
[1672650781400,30.0,11.144,11.133,67.48]
[1672650781613,20.0,11.143,11.128,233.723]
[1672650781808,79.17044968,11.143,11.128,233.723]
[1672650782019,12.86564968,11.142,11.128,233.723]
[1672650782229,20.0,11.141,11.129,30.0]
[1672650782439,23.4155,11.141,11.13,76.67]
[1672650782654,20.0,11.14,11.131,30.0]
[1672650782867,20.0,11.14,11.132,67.48]
[1672650783487,20.0,11.14,11.131,67.49]
[1672650786650,20.0,11.14,11.132,30.0]
[1672650786873,534.6,11.143,11.132,30.0]
[1672650787086,20.0,11.142,11.133,67.48]
[1672650787296,20.0,11.142,11.133,201.4992]
[1672650787512,534.6,11.143,11.133,201.4992]
[1672650787726,534.6,11.143,11.133,134.0192]
[1672650787934,534.6,11.143,11.133,201.4992]
[1672650788149,534.6,11.142,11.133,134.0192]
[1672650789085,534.6,11.142,11.131,67.49]
[1672650789284,32.86564968,11.141,11.131,67.49]
[1672650789495,20.0,11.141,11.13,67.49]
[1672650789820,42.9232,11.141,11.13,67.49]
[1672650790559,534.6,11.14,11.13,67.49]
[1672650790772,20.0,11.139,11.131,30.0]
[1672650791811,20.0,11.14,11.131,30.0]
[1672650795493,20.0,11.14,11.131,97.49]
[1672650796239,20.0,11.14,11.131,67.49]
[1672650796558,20.0,11.14,11.13,67.49]
[1672650796777,43.2848,11.14,11.129,199.3998]
[1672650799207,43.2848,11.14,11.13,30.0]
[1672650800658,534.6,11.139,11.129,199.3998]
[1672650800870,20.0,11.138,11.129,131.8998]
[1672650801605,564.6,11.137,11.129,131.8998]
[1672650801814,602.05,11.137,11.129,131.8998]
[1672650802026,534.6,11.135,11.129,131.8998]
[1672650802243,20.0,11.134,11.129,109.059]
[1672650802639,567.1148,11.14,11.129,109.059]
[1672650802859,20.0,11.139,11.129,199.9157]
[1672650803070,554.6,11.139,11.129,199.9157]
[1672650803604,632.15642626,11.139,11.129,132.4157]
[1672650803797,12.86564968,11.138,11.129,199.9157]
[1672650804024,20.0,11.137,11.129,199.9157]
[1672650804223,554.6,11.137,11.129,132.4157]
[1672650804548,567.46564968,11.137,11.129,132.4157]
[1672650805500,534.6,11.136,11.129,132.4157]
[1672650805686,20.0,11.135,11.129,132.4157]
[1672650805902,20.0,11.135,11.129,109.059]
[1672650812857,19.5,11.135,11.129,109.059]
[1672650813256,631.65642626,11.135,11.129,109.059]
[1672650822525,631.65642626,11.135,11.121,1.0]
[1672650822727,12.86564968,11.127,11.121,1.0]
[1672650823044,534.6,11.125,11.104,49.5552731]
[1672650823257,622.13,11.124,11.105,97.65]
[1672650823463,20.0,11.123,11.105,97.65]
[1672650823670,67.54,11.122,11.105,97.65]
[1672650823886,20.0,11.121,11.105,97.65]
[1672650824100,67.55,11.12,11.105,97.65]
[1672650824307,20.0,11.119,11.105,97.65]
[1672650824521,20.0,11.119,11.104,49.5552731]
[1672650824717,20.0,11.119,11.102,36.060588]
[1672650824718,12.86564968,11.103,11.102,0.0125627]
[1672650824928,67.63,11.108,11.102,0.0125627]
[1672650825152,20.0,11.103,11.102,0.0125627]
[1672650826396,32.86564968,11.103,11.102,0.0125627]
[1672650826607,20.0,11.103,11.102,0.0125627]
[1672650826811,87.66,11.103,11.102,0.0125627]
[1672650827044,32.86564968,11.103,11.102,0.0125627]
[1672650827464,635.12564968,11.103,11.102,0.0125627]
[1672650827880,100.52564968,11.103,11.102,0.0125627]
[1672650828198,32.86564968,11.103,11.102,0.0125627]
[1672650828409,635.12564968,11.103,11.102,0.0125627]
[1672650828830,20.0,11.103,11.102,0.0125627]
[1672650830185,67.6,11.113,11.105,19.21484246]
[1672650830411,20.0,11.112,11.105,19.21484246]
[1672650830729,602.19,11.114,11.105,19.21484246]
[1672650831045,67.59,11.114,11.105,19.21484246]
[1672650831357,67.59,11.115,11.105,19.21484246]
[1672650831565,12.86564968,11.113,11.105,19.21484246]
[1672650831979,12.86564968,11.113,11.107,30.0]
[1672650832187,67.56,11.119,11.107,30.0]
[1672650832397,80.42564968,11.119,11.107,30.0]
[1672650833340,602.12,11.125,11.107,30.0]
[1672650833550,12.86564968,11.121,11.108,67.63]
[1672650833774,76.76,11.12,11.108,67.63]
[1672650834195,12.86564968,11.119,11.108,67.63]
[1672650834613,602.17,11.118,11.105,19.21484246]
[1672650835023,12.67647068,11.117,11.105,19.21484246]
[1672650835233,12.67647068,11.117,11.107,30.0]
[1672650835449,602.13,11.124,11.107,30.0]
[1672650835658,12.86564968,11.123,11.108,67.63]
[1672650835973,87.54,11.122,11.108,67.63]
[1672650836390,635.00564968,11.122,11.108,67.63]
[1672650836935,9.13,11.12,11.107,30.0]
[1672650837141,87.56,11.119,11.107,30.0]
[1672650837355,100.42564968,11.119,11.107,30.0]
[1672650837545,12.86564968,11.118,11.107,30.0]
[1672650837757,20.0,11.117,11.107,30.0]
[1672650837967,87.57,11.117,11.107,30.0]
[1672650838301,20.0,11.117,11.107,97.63]
[1672650838516,20.0,11.118,11.107,97.63]
[1672650839010,20.0,11.12,11.107,97.63]
[1672650839221,67.54,11.123,11.107,97.63]
[1672650839433,20.0,11.122,11.112,66.45586974]
[1672650839641,12.85949707,11.122,11.112,66.45586974]
[1672650839868,12.85949707,11.122,11.111,67.61]
[1672650840390,12.85949707,11.122,11.112,30.0]
[1672650840594,12.85949707,11.122,11.112,25.49764058]
[1672650841427,12.85949707,11.122,11.112,20.99528116]
[1672650841970,12.85949707,11.122,11.11,67.62]
[1672650842180,12.85949707,11.122,11.108,145.7526]
[1672650842181,87.55,11.121,11.108,145.7526]
[1672650842600,12.85949707,11.12,11.108,145.7526]
[1672650842812,20.0,11.119,11.108,145.7526]
[1672650843023,87.56,11.119,11.108,145.7526]
[1672650843345,12.85949707,11.118,11.108,145.7526]
[1672650843551,20.0,11.117,11.108,145.7526]
[1672650843756,20.0,11.117,11.108,30.0]
[1672650844088,12.85949707,11.116,11.108,30.0]
[1672650844498,20.0,11.115,11.108,30.0]
[1672650844821,12.85949707,11.114,11.107,23.9565]
[1672650845024,20.0,11.113,11.105,85.6707122]
[1672650845229,67.56,11.119,11.117,42.08083402]
[1672650845667,80.98945011,11.119,11.117,42.08083402]
[1672650845978,67.57,11.118,11.117,42.08083402]
[1672650846191,80.42949707,11.118,11.117,42.08083402]
[1672650846601,80.42949707,11.118,11.117,24.72100252]
[1672650846919,161.41894718,11.118,11.117,11.86150545]
[1672650847321,181.00072195,11.118,11.117,11.86150545]
[1672650847549,113.43072195,11.118,11.117,11.86150545]
[1672650847762,32.44127184,11.118,11.117,7.36117102]
[1672650849341,20.0,11.118,11.117,7.36117102]
[1672650850580,20.0,11.118,11.117,2.85905264]
[1672650850794,20.0,11.118,11.117,5.264e-05]
[1672650851014,32.0230466,11.118,11.106,142.2005]
[1672650851226,20.0,11.117,11.106,142.2005]
[1672650851753,12.0230466,11.116,11.106,142.2005]
[1672650851966,20.0,11.115,11.106,142.2005]
[1672650852576,20.0,11.115,11.107,67.63]
[1672650852820,20.0,11.115,11.106,97.64]
[1672650853363,20.0,11.117,11.106,97.64]
[1672650853663,12.0230466,11.116,11.106,97.64]
[1672650853876,20.0,11.115,11.106,30.0]
[1672650854506,12.0230466,11.114,11.105,49.21484246]
[1672650854816,20.0,11.115,11.105,49.21484246]
[1672650854817,20.0,11.113,11.105,49.21484246]
[1672650855017,12.0230466,11.114,11.105,49.21484246]
[1672650855229,20.0,11.113,11.105,49.21484246]
[1672650855425,20.0,11.113,11.105,19.21484246]
[1672650857542,32.0230466,11.113,11.105,19.21484246]
[1672650858166,20.0,11.113,11.105,19.21484246]
[1672650858372,20.0,11.116,11.105,19.21484246]
[1672650858588,12.0230466,11.113,11.105,19.21484246]
[1672650858919,20.0,11.112,11.105,19.21484246]
[1672650859130,534.6,11.111,11.105,19.21484246]
[1672650859337,20.0,11.11,11.105,19.21484246]
[1672650859545,32.0230466,11.11,11.105,19.21484246]
[1672650859959,12.0230466,11.109,11.105,19.21484246]
[1672650860290,20.0,11.108,11.105,19.21484246]
[1672650862486,12.0230466,11.109,11.105,19.21484246]
[1672650862710,32.0230466,11.108,11.105,19.21484246]
[1672650863439,20.0,11.108,11.105,19.21484246]
[1672650863973,20.0,11.109,11.105,19.21484246]
[1672650864580,20.0,11.11,11.105,19.21484246]
[1672650864790,12.0230466,11.108,11.105,19.21484246]
[1672650865001,20.0,11.107,11.105,19.21484246]
[1672650865211,554.6,11.11,11.105,19.21484246]
[1672650865645,566.6230466,11.11,11.105,19.21484246]
[1672650865856,32.0230466,11.11,11.105,19.21484246]
[1672650866785,566.6230466,11.11,11.105,19.21484246]
[1672650867201,554.6,11.11,11.105,19.21484246]
[1672650867835,614.2430466,11.109,11.105,19.21484246]
[1672650868055,20.0,11.108,11.105,19.21484246]
[1672650868676,32.0230466,11.108,11.105,19.21484246]
[1672650868879,20.0,11.108,11.105,19.21484246]
[1672650869092,534.6,11.112,11.105,19.21484246]
[1672650869303,20.0,11.111,11.105,19.21484246]
[1672650869514,602.22,11.11,11.105,19.21484246]
[1672650869738,20.0,11.109,11.105,19.21484246]
[1672650870378,534.6,11.107,11.105,19.21484246]
[1672650870687,20.0,11.106,11.105,19.21484246]
[1672650875503,534.6,11.112,11.105,19.21484246]
[1672650875721,534.6,11.116,11.106,67.64]
[1672650875941,534.6,11.117,11.107,30.0]
[1672650876783,534.6,11.117,11.106,115.2938]
[1672650877104,546.6230466,11.117,11.106,115.2938]
[1672650877297,20.0,11.116,11.106,115.2938]
[1672650877512,554.6,11.116,11.106,115.2938]
[1672650877719,566.6230466,11.116,11.105,19.21484246]
[1672650877934,534.6,11.114,11.105,19.21484246]
[1672650878133,20.0,11.113,11.105,19.21484246]
[1672650878350,534.6,11.112,11.105,19.21484246]
[1672650878560,20.0,11.111,11.105,19.21484246]
[1672650879412,546.6230466,11.111,11.105,19.21484246]
[1672650879613,622.22,11.11,11.105,19.21484246]
[1672650880033,566.6230466,11.11,11.105,19.21484246]
[1672650880654,32.0230466,11.11,11.105,19.21484246]
[1672650880868,20.0,11.11,11.105,19.21484246]
[1672650881084,534.6,11.111,11.105,19.21484246]
[1672650881293,20.0,11.11,11.105,19.21484246]
[1672650881509,534.6,11.109,11.105,19.21484246]
[1672650881821,20.0,11.108,11.105,19.21484246]
[1672650882774,12.0230466,11.111,11.105,19.21484246]
[1672650882990,20.0,11.11,11.105,19.21484246]
[1672650884562,554.6,11.11,11.105,19.21484246]
[1672650884960,534.6,11.108,11.105,19.21484246]
[1672650885173,20.0,11.107,11.105,19.21484246]
[1672650885818,20.0,11.112,11.105,19.21484246]
[1672650886238,534.6,11.112,11.105,19.21484246]
[1672650886449,87.61,11.111,11.105,30.35993846]
[1672650886650,20.0,11.111,11.105,30.35993846]
[1672650886856,32.0230466,11.111,11.105,30.35993846]
[1672650887605,566.6230466,11.111,11.105,30.35993846]
[1672650888440,554.6,11.111,11.105,30.35993846]
[1672650888651,20.0,11.111,11.105,30.35993846]
[1672650889295,32.0230466,11.111,11.105,30.35993846]
[1672650889607,566.6230466,11.111,11.105,30.35993846]
[1672650889821,554.6,11.111,11.105,30.35993846]
[1672650890559,20.0,11.111,11.105,30.35993846]
[1672650890984,20.0,11.112,11.105,30.35993846]
[1672650891297,32.0230466,11.112,11.105,30.35993846]
[1672650891821,20.0,11.112,11.105,30.35993846]
[1672650892438,20.0,11.113,11.105,30.35993846]
[1672650892764,32.0230466,11.113,11.105,30.35993846]
[1672650892976,534.6,11.111,11.105,30.35993846]
[1672650893289,32.0230466,11.11,11.105,30.35993846]
[1672650893490,534.6,11.108,11.105,30.35993846]
[1672650893701,20.0,11.107,11.105,30.35993846]
[1672650893911,32.0230466,11.107,11.105,30.35993846]
[1672650894124,20.0,11.107,11.105,30.35993846]
[1672650894740,534.6,11.11,11.105,30.35993846]
[1672650894954,32.0230466,11.109,11.105,30.35993846]
[1672650895497,12.0230466,11.108,11.105,30.35993846]
[1672650895811,20.0,11.107,11.105,30.35993846]
[1672650896225,32.0230466,11.107,11.105,30.35993846]
[1672650898228,534.6,11.106,11.105,5.35993846]
[1672650898432,12.0230466,11.105,11.099,70.0939158]
[1672650898638,534.6,11.103,11.099,70.0939158]
[1672650899269,12.0230466,11.102,11.099,70.0939158]
[1672650900316,20.0,11.101,11.099,70.0939158]
[1672650900952,12.0230466,11.101,11.099,70.0939158]
[1672650901156,20.0,11.1,11.099,70.0939158]
[1672650902016,554.6,11.1,11.099,70.0939158]
[1672650902210,566.6230466,11.1,11.099,70.0939158]
[1672650904121,554.6,11.1,11.099,70.0939158]
[1672650904620,572.58429909,11.1,11.099,12.0661158]
[1672650904835,646.10342018,11.1,11.094,5.305281]
[1672650905156,540.56125249,11.098,11.081,114.4929808]
[1672650905364,9.13,11.09,11.081,202.5495808]
[1672650905576,20.0,11.089,11.081,202.5495808]
[1672650905796,20.0,11.089,11.082,67.79]
[1672650905989,20.0,11.091,11.081,202.5495808]
[1672650906203,20.0,11.091,11.081,155.8109808]
[1672650906430,12.0230466,11.088,11.081,155.8109808]
[1672650906626,20.0,11.087,11.081,44.2029808]
[1672650907474,20.0,11.088,11.081,44.2029808]
[1672650907993,12.0230466,11.087,11.081,44.2029808]
[1672650908321,20.0,11.086,11.081,44.2029808]
[1672650908640,20.0,11.088,11.081,44.2029808]
[1672650909050,12.0230466,11.087,11.081,44.2029808]
[1672650909251,20.0,11.086,11.081,44.2029808]
[1672650909683,12.0230466,11.085,11.081,44.2029808]
[1672650910100,20.0,11.084,11.081,44.2029808]
[1672650910739,20.0,11.088,11.081,44.2029808]
[1672650911365,12.0230466,11.087,11.081,44.2029808]
[1672650911576,20.0,11.086,11.081,44.2029808]
[1672650911982,12.0230466,11.085,11.081,44.2029808]
[1672650912187,20.0,11.084,11.081,44.2029808]
[1672650912397,20.0,11.086,11.081,44.2029808]
[1672650912931,30.0230466,11.086,11.081,44.2029808]
[1672650913348,570.58429909,11.086,11.081,44.2029808]
[1672650913574,649.11778018,11.086,11.081,44.2029808]
[1672650915037,637.09473358,11.086,11.081,44.2029808]
[1672650915457,18.0,11.086,11.081,44.2029808]
[1672650915686,20.0,11.087,11.081,44.2029808]
[1672650915873,554.6,11.088,11.081,44.2029808]
[1672650916514,566.6230466,11.088,11.081,44.2029808]
[1672650916837,642.06522044,11.088,11.081,44.2029808]
[1672650917565,534.6,11.086,11.078,154.8612329]
[1672650917884,534.6,11.084,11.078,154.8612329]